{"text_format":"1","workbook":"xlsx","n_sheets":4,"sheets":["Бланк Методички","Обработка результатов","Результаты","Результаты с расшифровкой"],"not_rendered":{"charts":0,"images":1,"macros":1,"external_links":0,"defined_names":0,"comments":0,"pivot_tables":0},"unopened":[],"bounds":{"document_bytes":16777216,"sheet_cells":100000,"rows_first":2000,"rows_last":500,"rows_between":2000,"halvings":0,"cell_chars":16384,"cell_head_chars":4096},"cells_cut":0,"cells_raw":0,"read":"whole","date_system":"1900"}

{"sheet":"Бланк Методички","index":0,"n_rows":69,"n_cols":34,"rows_kept":69,"cut":false,"hidden":false,"merged":[[65,1,65,13],[66,1,66,13],[67,1,67,13],[68,1,68,13],[1,3,1,14],[60,1,60,13],[61,1,61,13],[62,1,62,13],[63,1,63,13],[64,1,64,13],[55,1,55,13],[56,1,56,13],[57,1,57,13],[58,1,58,13],[59,1,59,13],[50,1,50,13],[51,1,51,13],[52,1,52,13],[53,1,53,13],[54,1,54,13],[45,1,45,13],[46,1,46,13],[47,1,47,13],[48,1,48,13],[49,1,49,13],[25,1,25,13],[26,1,26,13],[27,1,27,13],[28,1,28,13],[29,1,29,13],[20,1,20,13],[21,1,21,13],[22,1,22,13],[23,1,23,13],[24,1,24,13],[15,1,15,13],[16,1,16,13],[17,1,17,13],[18,1,18,13],[19,1,19,13],[30,1,30,13],[31,1,31,13],[32,1,32,13],[33,1,33,13],[34,1,34,13],[35,1,35,13],[36,1,36,13],[37,1,37,13],[38,1,38,13],[44,1,44,13],[39,1,39,13],[40,1,40,13],[41,1,41,13],[42,1,42,13],[43,1,43,13],[12,1,12,13],[13,1,13,13],[14,1,14,13],[1,0,1,2],[3,0,6,14],[8,1,8,13],[9,1,9,13],[10,1,10,13],[11,1,11,13]]}
[null,null,null,null,null,null,null,null,null,null,null,null,null,null,null,null,null,null,null,null,null,null,null,null,null,null,null,null,null,null,null,null,10,"5 А"]
["Фамилия, имя",null,null,null,null,null,null,null,null,null,null,null,null,null,null,null,null,null,null,null,null,null,null,null,null,null,null,null,null,null,null,null,11,"5 Б"]
[null,null,null,null,null,null,null,null,null,null,null,null,null,null,null,null,null,null,null,null,null,null,null,null,null,null,null,null,null,null,null,null,13]
["Отвечая на вопросы методики, выразите свое согласие или несогласие с ними с помощью оценок «Да» или «Нет».",null,null,null,null,null,null,null,null,null,null,null,null,null,null,null,null,null,null,null,null,null,null,null,null,null,null,null,null,null,null,"Мальчик",14]
[null,null,null,null,null,null,null,null,null,null,null,null,null,null,null,null,null,null,null,null,null,null,null,null,null,null,null,null,null,null,null,"Девочка",15]
[null,null,null,null,null,null,null,null,null,null,null,null,null,null,null,null,null,null,null,null,null,null,null,null,null,null,null,null,null,null,null,null,16]
[]
[]
[1,"Я всегда сочувствую своему ребенку.",null,null,null,null,null,null,null,null,null,null,null,null,null,null,null,null,null,"Да"]
[2,"Я считаю своим долгом знать все, о чем думает мой ребенок.",null,null,null,null,null,null,null,null,null,null,null,null,null,null,null,null,null,"Нет"]
[3,"Мне кажется, что поведение моего ребенка значительно отклоняется от нормы."]
[4,"Нужно подольше держать ребенка в стороне от реальных жизненных проблем, если они его травмируют."]
[5,"Я испытываю к ребенку чувство симпатии."]
[6,"Я уважаю своего ребенка."]
[7,"Хорошие родители ограждают ребенка от трудностей жизни."]
[8,"Мой ребенок часто мне неприятен."]
[9,"Я всегда стараюсь помочь своему ребенку."]
[10,"Бывают случаи, когда недоброе отношение к ребенку приносит ему пользу."]
[11,"По отношению к своему ребенку я испытываю досаду."]
[12,"Мой ребенок ничего не добьется в жизни."]
[13,"Мне кажется, что другие дети потешаются над моим ребенком."]
[14,"Мой ребенок часто совершает такие поступки, которые заслуживают осуждения."]
[15,"Мой ребенок отстает в психологическом развитии и для своего возраста выглядит недостаточно развитым."]
[16,"Мой ребенок специально ведет себя плохо, чтобы досадить мне."]
[17,"Мой ребенок, как губка, впитывает в себя все самое плохое."]
[18,"При всем старании моего ребенка трудно научить хорошим манерам."]
[19,"Ребенка с детства следует держать в жестких рамках, только тогда из него вырастет хороший человек."]
[20,"Я люблю, когда друзья моего ребенка приходят к нам в дом."]
[21,"Я всегда принимаю участие в играх и делах ребенка."]
[22,"К моему ребенку постоянно «липнет» все дурное."]
[23,"Мой ребенок не добьется успехов в жизни."]
[24,"Когда в компании говорят о детях, мне становится стыдно, что мой ребенок не такой умный и способный, как другие дети."]
[25,"Я жалею своего ребенка."]
[26,"Когда я сравниваю своего ребенка со сверстниками, то они кажутся мне воспитаннее и разумнее, чем мой ребенок."]
[27,"Я с удовольствием провожу с ребенком свое свободное время."]
[28,"Я часто жалею о том, что мой ребенок взрослеет, и с нежностью вспоминаю то время, когда он был еще совсем маленьким."]
[29,"Я часто ловлю себя на том, что с неприязнью и враждебно отношусь к ребенку."]
[30,"Я мечтаю о том, чтобы мой ребенок достиг того, что лично мне не удалось в жизни."]
[31,"Родители должны не только требовать от ребенка, но и сами приспосабливаться к нему, относиться к нему с уважением, как к личности."]
[32,"Я стараюсь выполнять все просьбы и пожелания моего ребенка."]
[33,"При принятии решений в семье следует учитывать мнение ребенка."]
[34,"Я очень интересуюсь жизнью своего ребенка."]
[35,"Я часто признаю, что в своих требованиях и претензиях ребенок по-своему прав."]
[36,"Дети рано узнают о том, что родители могут ошибаться."]
[37,"Я всегда считаюсь с ребенком."]
[38,"Я испытываю дружеские чувства по отношению к ребенку."]
[39,"Основная причина капризов моего ребенка – это эгоизм, лень и упрямство."]
[40,"Если проводить отпуск с ребенком, то невозможно нормально отдохнуть."]
[41,"Самое главное – чтобы у ребенка было спокойное, беззаботное детство."]
[42,"Иногда мне кажется, что мой ребенок не способен ни на что хорошее."]
[43,"Я разделяю увлечения своего ребенка."]
[44,"Мой ребенок может вывести из себя кого угодно."]
[45,"Я понимаю огорчения своего ребенка."]
[46,"Мой ребенок часто раздражает меня."]
[47,"Воспитание ребенка - сплошная нервотрепка."]
[48,"Строгая дисциплина в детстве развивает сильный характер."]
[49,"Я не доверяю своему ребенку."]
[50,"За строгое воспитание дети благодарят потом."]
[51,"Иногда мне кажется, что ненавижу своего ребенка."]
[52,"В моем ребенке больше недостатков, чем достоинств."]
[53,"Я разделяю интересы своего ребенка."]
[54,"Мой ребенок не в состоянии что-либо сделать самостоятельно, а если и сделает, то обязательно не так."]
[55,"Мой ребенок вырастет не приспособленным к жизни."]
[56,"Мой ребенок нравится мне таким, какой он есть."]
[57,"Я тщательно слежу за состоянием здоровья моего ребенка."]
[58,"Нередко я восхищаюсь своим ребенком."]
[59,"Ребенок не должен иметь секретов от родителей."]
[60,"Я не высокого мнения о способностях моего ребенка и не скрываю этого от него."]
[61,"Очень желательно, чтобы ребенок дружил с теми детьми, которые нравятся его родителям."]

{"sheet":"Обработка результатов","index":1,"n_rows":61,"n_cols":49,"rows_kept":61,"cut":false,"hidden":true,"merged":[[5,3,5,6],[0,3,0,6],[1,3,1,6],[2,3,2,6],[3,3,3,6],[4,3,4,6]]}
[1,{"$f":"IF('Бланк Методички'!O9=\"Да\",1,0)","v":0},null,"Принятие / отвержение ребенка:",null,null,null,{"$f":"SUM(B3,B5,B6,B8,B10,B12,B14,B15,B16,B18,B20,B23,B24,B26,B27,B29,B37,B38,B39,B40,B42,B43,B44,B45,B46,B47,B49,B51,B52,B53,B55,B56,B60)","v":23}]
[2,{"$f":"IF('Бланк Методички'!O10=\"Да\",1,0)","v":0},null,"Кооперация:",null,null,null,{"$f":"SUM(B21,B25,B31,B33,B34,B35,B36)","v":0}]
[3,{"$f":"IF('Бланк Методички'!O11=\"Да\",0,1)","v":1},null,"Симбиоз:",null,null,null,{"$f":"SUM(B1,B4,B7,B28,B32,B41,B58)","v":0}]
[4,{"$f":"IF('Бланк Методички'!O12=\"Да\",1,0)","v":0},null,"Контроль:",null,null,null,{"$f":"SUM(B2,B19,B30,B48,B50,B57,B59)","v":0}]
[5,{"$f":"IF('Бланк Методички'!O13=\"Да\",1,0)","v":0},null,"Отношение к неудачам ребенка:",null,null,null,{"$f":"SUM(B9,B11,B13,B17,B22,B54,B61)","v":0}]
[6,{"$f":"IF('Бланк Методички'!O14=\"Да\",1,0)","v":0}]
[7,{"$f":"IF('Бланк Методички'!O15=\"Да\",1,0)","v":0}]
[8,{"$f":"IF('Бланк Методички'!O16=\"Да\",0,1)","v":1}]
[9,{"$f":"IF('Бланк Методички'!O17=\"Да\",1,0)","v":0}]
[10,{"$f":"IF('Бланк Методички'!O18=\"Да\",0,1)","v":1},null,null,null,null,null,null,null,null,null,null,null,null,null,null,null,null,null,null,null,null,null,null,null,null,null,null,null,null,null,null,null,null,null,null,null,null,null,null,null,null,null,null,null,{"$f":"'Бланк Методички'!O22","v":0},{"$f":"'Бланк Методички'!O38","v":0},{"$f":"'Бланк Методички'!O46","v":0}]
[11,{"$f":"IF('Бланк Методички'!O19=\"Да\",1,0)","v":0},null,null,null,null,null,null,null,null,null,null,null,null,null,null,null,null,null,null,null,null,null,null,null,null,null,null,null,null,null,null,null,null,null,null,null,null,null,null,null,null,null,null,null,{"$f":"'Бланк Методички'!O12","v":0},{"$f":"'Бланк Методички'!O28","v":0},{"$f":"'Бланк Методички'!O40","v":0}]
[12,{"$f":"IF('Бланк Методички'!O20=\"Да\",0,1)","v":1},null,null,null,null,null,null,null,null,null,null,null,null,null,null,null,null,null,null,null,null,null,null,null,null,null,null,null,null,null,null,null,null,null,null,null,null,null,null,null,null,null,null,null,{"$f":"'Бланк Методички'!O9","v":0},{"$f":"'Бланк Методички'!O17","v":0},{"$f":"'Бланк Методички'!O33","v":0},{"$f":"'Бланк Методички'!O41","v":0}]
[13,{"$f":"IF('Бланк Методички'!O21=\"Да\",1,0)","v":0}]
[14,{"$f":"IF('Бланк Методички'!O22=\"Да\",0,1)","v":1}]
[15,{"$f":"IF('Бланк Методички'!O23=\"Да\",0,1)","v":1}]
[16,{"$f":"IF('Бланк Методички'!O24=\"Да\",0,1)","v":1}]
[17,{"$f":"IF('Бланк Методички'!O25=\"Да\",1,0)","v":0}]
[18,{"$f":"IF('Бланк Методички'!O26=\"Да\",0,1)","v":1}]
[19,{"$f":"IF('Бланк Методички'!O27=\"Да\",1,0)","v":0}]
[20,{"$f":"IF('Бланк Методички'!O28=\"Да\",1,0)","v":0}]
[21,{"$f":"IF('Бланк Методички'!O29=\"Да\",1,0)","v":0}]
[22,{"$f":"IF('Бланк Методички'!O30=\"Да\",1,0)","v":0}]
[23,{"$f":"IF('Бланк Методички'!O31=\"Да\",0,1)","v":1}]
[24,{"$f":"IF('Бланк Методички'!O32=\"Да\",0,1)","v":1}]
[25,{"$f":"IF('Бланк Методички'!O33=\"Да\",1,0)","v":0}]
[26,{"$f":"IF('Бланк Методички'!O34=\"Да\",0,1)","v":1}]
[27,{"$f":"IF('Бланк Методички'!O35=\"Да\",1,0)","v":0}]
[28,{"$f":"IF('Бланк Методички'!O36=\"Да\",1,0)","v":0}]
[29,{"$f":"IF('Бланк Методички'!O37=\"Да\",0,1)","v":1}]
[30,{"$f":"IF('Бланк Методички'!O38=\"Да\",1,0)","v":0}]
[31,{"$f":"IF('Бланк Методички'!O39=\"Да\",1,0)","v":0}]
[32,{"$f":"IF('Бланк Методички'!O40=\"Да\",1,0)","v":0}]
[33,{"$f":"IF('Бланк Методички'!O41=\"Да\",1,0)","v":0}]
[34,{"$f":"IF('Бланк Методички'!O42=\"Да\",1,0)","v":0}]
[35,{"$f":"IF('Бланк Методички'!O43=\"Да\",1,0)","v":0}]
[36,{"$f":"IF('Бланк Методички'!O44=\"Да\",1,0)","v":0}]
[37,{"$f":"IF('Бланк Методички'!O45=\"Да\",1,0)","v":0}]
[38,{"$f":"IF('Бланк Методички'!O46=\"Да\",1,0)","v":0}]
[39,{"$f":"IF('Бланк Методички'!O47=\"Да\",0,1)","v":1}]
[40,{"$f":"IF('Бланк Методички'!O48=\"Да\",0,1)","v":1}]
[41,{"$f":"IF('Бланк Методички'!O49=\"Да\",1,0)","v":0}]
[42,{"$f":"IF('Бланк Методички'!O50=\"Да\",0,1)","v":1}]
[43,{"$f":"IF('Бланк Методички'!O51=\"Да\",1,0)","v":0}]
[44,{"$f":"IF('Бланк Методички'!O52=\"Да\",0,1)","v":1}]
[45,{"$f":"IF('Бланк Методички'!O53=\"Да\",1,0)","v":0}]
[46,{"$f":"IF('Бланк Методички'!O54=\"Да\",0,1)","v":1}]
[47,{"$f":"IF('Бланк Методички'!O55=\"Да\",0,1)","v":1}]
[48,{"$f":"IF('Бланк Методички'!O56=\"Да\",1,0)","v":0}]
[49,{"$f":"IF('Бланк Методички'!O57=\"Да\",0,1)","v":1}]
[50,{"$f":"IF('Бланк Методички'!O58=\"Да\",1,0)","v":0}]
[51,{"$f":"IF('Бланк Методички'!O59=\"Да\",0,1)","v":1}]
[52,{"$f":"IF('Бланк Методички'!O60=\"Да\",0,1)","v":1}]
[53,{"$f":"IF('Бланк Методички'!O61=\"Да\",1,0)","v":0}]
[54,{"$f":"IF('Бланк Методички'!O62=\"Да\",1,0)","v":0}]
[55,{"$f":"IF('Бланк Методички'!O63=\"Да\",0,1)","v":1}]
[56,{"$f":"IF('Бланк Методички'!O64=\"Да\",1,0)","v":0}]
[57,{"$f":"IF('Бланк Методички'!O65=\"Да\",1,0)","v":0}]
[58,{"$f":"IF('Бланк Методички'!O66=\"Да\",1,0)","v":0}]
[59,{"$f":"IF('Бланк Методички'!O67=\"Да\",1,0)","v":0}]
[60,{"$f":"IF('Бланк Методички'!O68=\"Да\",0,1)","v":1}]
[61,{"$f":"IF('Бланк Методички'!O69=\"Да\",1,0)","v":0}]

{"sheet":"Результаты","index":2,"n_rows":41,"n_cols":8,"rows_kept":41,"cut":false,"hidden":false,"merged":[[9,0,9,4],[9,6,9,8],[8,0,8,4],[0,0,0,8],[2,7,2,8],[2,1,2,5],[5,6,5,8],[6,6,6,8],[7,6,7,8],[8,6,8,8],[4,6,4,8],[4,0,4,4],[5,0,5,4],[6,0,6,4],[7,0,7,4],[18,0,18,8],[28,0,28,8],[34,0,34,8],[29,0,29,8],[30,0,30,8],[31,0,31,8],[32,0,32,8],[33,0,33,8],[19,0,19,8],[12,0,12,8],[13,0,13,8],[14,0,14,8],[40,5,40,8],[25,0,25,8],[26,0,26,8],[27,0,27,8],[20,0,20,8],[21,0,21,8],[22,0,22,8],[23,0,23,8],[24,0,24,8],[15,0,15,8],[16,0,16,8],[17,0,17,8]]}
["Опросник родительского отношения"]
[]
["ФИО",{"$f":"PROPER('Бланк Методички'!D2)","v":""},null,null,null,null,"Дата",{"$f":"TODAY()","v":"2018-03-31"}]
[]
["Шкала",null,null,null,null,"Баллы","Уровень"]
["Принятие / отвержение ребенка:",null,null,null,null,{"$f":"CONCATENATE('Обработка результатов'!H1, \" / 33\")","v":"23 / 33"},{"$f":"IF(AND('Обработка результатов'!H1>=0,'Обработка результатов'!H1<=8),\"Низкие баллы\",IF(AND('Обработка результатов'!H1>=9,'Обработка результатов'!H1<=23),\"Средние баллы\",IF(AND('Обработка результатов'!H1>=24,'Обработка результатов'!H1<=33),\"Высокие баллы\",)))","v":"Средние баллы"}]
["Кооперация:",null,null,null,null,{"$f":"CONCATENATE('Обработка результатов'!H2,\" / 7\")","v":"0 / 7"},{"$f":"IF(AND('Обработка результатов'!H2>=0,'Обработка результатов'!H2<=2),\"Низкие баллы\",IF(AND('Обработка результатов'!H2>=3,'Обработка результатов'!H2<=5),\"Средние баллы\",IF(AND('Обработка результатов'!H2>=6,'Обработка результатов'!H2<=8),\"Высокие баллы\",)))","v":"Низкие баллы"}]
["Симбиоз:",null,null,null,null,{"$f":"CONCATENATE('Обработка результатов'!H3,\" / 7\")","v":"0 / 7"},{"$f":"IF(AND('Обработка результатов'!H3>=0,'Обработка результатов'!H3<=2),\"Низкие баллы\",IF(AND('Обработка результатов'!H3>=3,'Обработка результатов'!H3<=5),\"Средние баллы\",IF(AND('Обработка результатов'!H3>=6,'Обработка результатов'!H3<=7),\"Высокие баллы\",)))","v":"Низкие баллы"}]
["Контроль:",null,null,null,null,{"$f":"CONCATENATE('Обработка результатов'!H4,\" / 7\")","v":"0 / 7"},{"$f":"IF(AND('Обработка результатов'!H4>=0,'Обработка результатов'!H4<=2),\"Низкие баллы\",IF(AND('Обработка результатов'!H4>=3,'Обработка результатов'!H4<=5),\"Средние баллы\",IF(AND('Обработка результатов'!H4>=6,'Обработка результатов'!H4<=7),\"Высокие баллы\",)))","v":"Низкие баллы"}]
["Отношение к неудачам ребенка:",null,null,null,null,{"$f":"CONCATENATE('Обработка результатов'!H5,\" / 7\")","v":"0 / 7"},{"$f":"IF(AND('Обработка результатов'!H5>=0,'Обработка результатов'!H5<=2),\"Низкие баллы\",IF(AND('Обработка результатов'!H5>=3,'Обработка результатов'!H5<=5),\"Средние баллы\",IF(AND('Обработка результатов'!H5>=6,'Обработка результатов'!H5<=7),\"Высокие баллы\",)))","v":"Низкие баллы"}]
[]
[]
[]
[]
[]
[]
[]
[]
[]
[]
[]
[]
[]
[]
[]
[]
[]
[]
[]
[]
[]
[]
[]
[]
[]
[]
[]
[]
[]
[]
[null,null,null,null,null,"http://eschool.by/psy"]

{"sheet":"Результаты с расшифровкой","index":3,"n_rows":46,"n_cols":8,"rows_kept":46,"cut":false,"hidden":false,"merged":[[6,0,13,8],[15,0,19,8],[38,0,44,8],[45,5,45,8],[21,0,27,8],[29,0,36,8],[37,0,37,4],[37,6,37,8],[14,0,14,4],[14,6,14,8],[20,0,20,4],[20,6,20,8],[28,0,28,4],[28,6,28,8],[0,0,0,8],[2,1,2,5],[2,7,2,8],[4,0,4,4],[4,6,4,8],[5,0,5,4],[5,6,5,8]]}
["Опросник родительского отношения"]
[]
["ФИО",{"$f":"PROPER('Бланк Методички'!D2)","v":""},null,null,null,null,"Дата",{"$f":"TODAY()","v":"2018-03-31"}]
[]
["Шкала",null,null,null,null,"Баллы","Уровень"]
["Принятие / отвержение ребенка:",null,null,null,null,{"$f":"CONCATENATE('Обработка результатов'!H1, \" / 33\")","v":"23 / 33"},{"$f":"IF(AND('Обработка результатов'!H1>=0,'Обработка результатов'!H1<=8),\"Низкие баллы\",IF(AND('Обработка результатов'!H1>=9,'Обработка результатов'!H1<=23),\"Средние баллы\",IF(AND('Обработка результатов'!H1>=24,'Обработка результатов'!H1<=33),\"Высокие баллы\",)))","v":"Средние баллы"}]
["Высокие баллы по шкале принятие—отвержение — говорят о том, что у испытуемого выражено положительное отношение к ребенку. Взрослый принимает ребенка таким, какой он есть, уважает и признает его индивидуальность, одобряет его интересы, поддерживает планы, проводит с ним достаточно много времени и не жалеет об этом.\nНизкие баллы по этой шкале — говорят о том, что взрослый испытывает по отношению к ребенку в основном отрицательные чувства: раздражение, злость, досаду, ненависть. Такой взрослый считает ребенка неудачником, не верит в его будущее, низко оценивает его способности и нередко третирует ребенка. Понятно, что имеющий такие наклонности взрослый не может быть хорошим педагогом."]
[]
[]
[]
[]
[]
[]
[]
["Кооперация:",null,null,null,null,{"$f":"CONCATENATE('Обработка результатов'!H2,\" / 7\")","v":"0 / 7"},{"$f":"IF(AND('Обработка результатов'!H2>=0,'Обработка результатов'!H2<=2),\"Низкие баллы\",IF(AND('Обработка результатов'!H2>=3,'Обработка результатов'!H2<=5),\"Средние баллы\",IF(AND('Обработка результатов'!H2>=6,'Обработка результатов'!H2<=8),\"Высокие баллы\",)))","v":"Низкие баллы"}]
["Высокие баллы по шкале кооперация — признак того, что взрослый проявляет искренний интерес к тому, что интересует ребенка, высоко оценивает способности ребенка, поощряет самостоятельность и инициативу, старается быть на равных с ребенком.\nНизкие баллы по данной шкале — говорят о том, что взрослый занимает по отношению к ребенку противоположную позицию и не может претендовать на роль хорошего педагога;"]
[]
[]
[]
[]
["Симбиоз:",null,null,null,null,{"$f":"CONCATENATE('Обработка результатов'!H3,\" / 7\")","v":"0 / 7"},{"$f":"IF(AND('Обработка результатов'!H3>=0,'Обработка результатов'!H3<=2),\"Низкие баллы\",IF(AND('Обработка результатов'!H3>=3,'Обработка результатов'!H3<=5),\"Средние баллы\",IF(AND('Обработка результатов'!H3>=6,'Обработка результатов'!H3<=7),\"Высокие баллы\",)))","v":"Низкие баллы"}]
["Высокие баллы по шкале симбиоз — позволяют сделать вывод о том, что взрослый не устанавливает психологическую дистанцию между собой и ребенком, старается всегда быть ближе к нему, удовлетворять его основные разумные потребности.\nНизкие баллы по этой шкале — признак того, что взрослый, напротив, устанавливает значительную психологическую дистан­цию между собой и ребенком, мало о нем заботится. Вряд ли такой взрослый может быть хорошим учителем и воспитателем для ребенка."]
[]
[]
[]
[]
[]
[]
["Контроль:",null,null,null,null,{"$f":"CONCATENATE('Обработка результатов'!H4,\" / 7\")","v":"0 / 7"},{"$f":"IF(AND('Обработка результатов'!H4>=0,'Обработка результатов'!H4<=2),\"Низкие баллы\",IF(AND('Обработка результатов'!H4>=3,'Обработка результатов'!H4<=5),\"Средние баллы\",IF(AND('Обработка результатов'!H4>=6,'Обработка результатов'!H4<=7),\"Высокие баллы\",)))","v":"Низкие баллы"}]
["Высокие баллы по шкале контроль — показывают, что взрослый ведет себя слишком авторитарно по отношению к ребенку, требуя от него безоговорочного послушания и задавая строгие дисциплинарные рамки. Почти во всем он навязывает ребенку свою волю. Такой взрослый человек да­леко не всегда может быть хорошим воспитателем.\nНизкие баллы по этой шкале — напротив, свидетельствуют о том, что контроль над действиями ребенка со стороны взрослого практически отсутствует. Это не очень хорошо для обучения и воспитания детей. Наилучшим вариантом оценки педагогических способностей взрослого человека по этой шкале являются средние оценки: от 3 до 5 баллов."]
[]
[]
[]
[]
[]
[]
[]
["Отношение к неудачам ребенка:",null,null,null,null,{"$f":"CONCATENATE('Обработка результатов'!H5,\" / 7\")","v":"0 / 7"},{"$f":"IF(AND('Обработка результатов'!H5>=0,'Обработка результатов'!H5<=2),\"Низкие баллы\",IF(AND('Обработка результатов'!H5>=3,'Обработка результатов'!H5<=5),\"Средние баллы\",IF(AND('Обработка результатов'!H5>=6,'Обработка результатов'!H5<=7),\"Высокие баллы\",)))","v":"Низкие баллы"}]
["Высокие баллы по шкале отношение к неудачам ребенка — признак того, что взрослый считает ребенка маленьким неудачником и относится к нему как к несмышленому существу. Интересы, увлечения, мысли и чувства ребенка кажутся такому взрослому несерьёзными, и он игнорирует их. Вряд ли такой взрослый может стать хорошим учителем и воспитателем для ребенка. Низкие баллы по этой же шкале балла, напротив, свидетельствуют о том, что неудачи ребенка взрослый считает случайными и верит в него. Такой взрослый, скорее всего, станет неплохим учителем и воспитателем."]
[]
[]
[]
[]
[]
[]
[null,null,null,null,null,"http://eschool.by/psy"]